[Event "Late Titled Tuesday Blitz February 8 2022"]
[White "Al-Tarboush, Ward"]
[Black "Mikhalsky, Vladimir"]
[WhiteFideId "7601450"]
[BlackFideId "14144352"]
[WhiteElo "2276"]
[BlackElo "2248"]
[Result "1-0"]
[Round "05"]
[TimeControl "180+1"]
[Date "2022.02.09"]
[WhiteClock "0:01:07"]
[BlackClock "0:00:43"]

1. e4 {[%clk 0:03:00]}  g6 {[%clk 0:02:59]} 2. d4 {[%clk 0:03:00]}  Bg7 {[%clk 0:02:58]} 3. Nf3 {[%clk 0:03:00]}  d6 {[%clk 0:02:57]} 4. c3 {[%clk 0:03:00]}  Nd7 {[%clk 0:02:56]} 5. Bd3 {[%clk 0:02:59]}  e5 {[%clk 0:02:56]} 6. O-O {[%clk 0:03:00]}  Ngf6 {[%clk 0:02:55]} 7. Nbd2 {[%clk 0:03:00]}  O-O {[%clk 0:02:55]} 8. b4 {[%clk 0:02:58]}  a5 {[%clk 0:02:52]} 9. b5 {[%clk 0:02:58]}  a4 {[%clk 0:02:51]} 10. a3 {[%clk 0:02:56]}  d5 {[%clk 0:02:46]} 11. dxe5 {[%clk 0:02:55]}  Nxe4 {[%clk 0:02:45]} 12. Nxe4 {[%clk 0:02:56]}  dxe4 {[%clk 0:02:45]} 13. Bxe4 {[%clk 0:02:57]}  Nxe5 {[%clk 0:02:44]} 14. Qxd8 {[%clk 0:02:53]}  Nxf3+ {[%clk 0:02:39]} 15. Bxf3 {[%clk 0:02:52]}  Rxd8 {[%clk 0:02:39]} 16. Bf4 {[%clk 0:02:50]}  Bxc3 {[%clk 0:02:27]} 17. Rad1 {[%clk 0:02:49]}  Be6 {[%clk 0:02:11]} 18. Bxb7 {[%clk 0:02:46]}  Rxd1 {[%clk 0:02:03]} 19. Rxd1 {[%clk 0:02:47]}  Ra7 {[%clk 0:01:46]} 20. Bc6 {[%clk 0:02:32]}  Bb2 {[%clk 0:01:46]} 21. Bh6 {[%clk 0:02:31]}  f6 {[%clk 0:01:41]} 22. Rd8+ {[%clk 0:02:14]}  Kf7 {[%clk 0:01:41]} 23. Be3 {[%clk 0:02:08]}  Ra5 {[%clk 0:01:37]} 24. Bd2 {[%clk 0:02:06]}  Ra7 {[%clk 0:01:36]} 25. Bb4 {[%clk 0:02:06]}  f5 {[%clk 0:01:20]} 26. h4 {[%clk 0:02:05]}  h6 {[%clk 0:01:17]} 27. h5 {[%clk 0:02:04]}  gxh5 {[%clk 0:01:17]} 28. g3 {[%clk 0:01:57]}  Bf6 {[%clk 0:01:14]} 29. Rf8+ {[%clk 0:01:53]}  Kg7 {[%clk 0:01:12]} 30. Rb8 {[%clk 0:01:49]}  h4 {[%clk 0:01:10]} 31. Bc5 {[%clk 0:01:48]}  Ra5 {[%clk 0:01:10]} 32. Rb7 {[%clk 0:01:46]}  hxg3 {[%clk 0:01:05]} 33. Rxc7+ {[%clk 0:01:41]}  Kg6 {[%clk 0:01:05]} 34. Bb6 {[%clk 0:01:26]}  gxf2+ {[%clk 0:00:56]} 35. Kxf2 {[%clk 0:01:27]}  Bc3 {[%clk 0:00:54]} 36. Be8+ {[%clk 0:01:20]}  Kf6 {[%clk 0:00:52]} 37. Rxc3 {[%clk 0:01:17]}  Ra8 {[%clk 0:00:51]} 38. Bc6 {[%clk 0:01:14]}  Rb8 {[%clk 0:00:50]} 39. Bd4+ {[%clk 0:01:11]}  Kg5 {[%clk 0:00:51]} 40. Rg3+ {[%clk 0:01:09]}  Kf4 {[%clk 0:00:49]} 41. Re3 {[%clk 0:01:07]}  Bb3 {[%clk 0:00:48]} 42. Be5+ {[%clk 0:01:07]}  Kg4 {[%clk 0:00:44]} 43. Rg3+ {[%clk 0:01:06]}  Kh4 {[%clk 0:00:44]} 44. Bf6+ {[%clk 0:01:06]}  Kh5 {[%clk 0:00:43]} 45. Bf3# {[%clk 0:01:07]} 1-0


[Site "https://www.chess.com"]

[Event "Late Titled Tuesday Blitz February 8 2022"]
[White "Andrews, Todd"]
[Black "Fishbein, Alexander"]
[WhiteFideId "2012456"]
[BlackFideId "2000377"]
[WhiteElo "2432"]
[BlackElo "2442"]
[Result "0-1"]
[Round "05"]
[TimeControl "180+1"]
[Date "2022.02.09"]
[WhiteClock "0:00:09"]
[BlackClock "0:00:27"]

1. e4 {[%clk 0:03:00]}  c5 {[%clk 0:02:58]} 2. Nf3 {[%clk 0:03:00]}  d6 {[%clk 0:02:58]} 3. d4 {[%clk 0:03:00]}  cxd4 {[%clk 0:02:59]} 4. Nxd4 {[%clk 0:03:01]}  Nf6 {[%clk 0:02:59]} 5. Nc3 {[%clk 0:03:02]}  Nc6 {[%clk 0:02:59]} 6. Bc4 {[%clk 0:03:02]}  e6 {[%clk 0:02:59]} 7. Bb3 {[%clk 0:03:02]}  Be7 {[%clk 0:02:58]} 8. Be3 {[%clk 0:03:00]}  a6 {[%clk 0:02:59]} 9. Qe2 {[%clk 0:03:00]}  Qc7 {[%clk 0:02:57]} 10. O-O-O {[%clk 0:03:00]}  Na5 {[%clk 0:02:57]} 11. g4 {[%clk 0:02:57]}  b5 {[%clk 0:02:56]} 12. g5 {[%clk 0:02:57]}  Nxb3+ {[%clk 0:02:57]} 13. axb3 {[%clk 0:02:56]}  Nd7 {[%clk 0:02:57]} 14. Nf5 {[%clk 0:02:53]}  exf5 {[%clk 0:02:57]} 15. Nd5 {[%clk 0:02:52]}  Qd8 {[%clk 0:02:57]} 16. exf5 {[%clk 0:02:48]}  Bb7 {[%clk 0:02:57]} 17. f6 {[%clk 0:02:20]}  gxf6 {[%clk 0:02:55]} 18. gxf6 {[%clk 0:02:20]}  Bxd5 {[%clk 0:02:48]} 19. fxe7 {[%clk 0:02:18]}  Qa5 {[%clk 0:02:45]} 20. Bd4 {[%clk 0:01:36]}  Rg8 {[%clk 0:02:22]} 21. Rhe1 {[%clk 0:01:17]}  Rc8 {[%clk 0:02:05]} 22. Kb1 {[%clk 0:01:16]}  Be6 {[%clk 0:02:03]} 23. Qh5 {[%clk 0:01:10]}  Rg6 {[%clk 0:01:29]} 24. Qxh7 {[%clk 0:00:37]}  Kxe7 {[%clk 0:01:13]} 25. Qh4+ {[%clk 0:00:36]}  Nf6 {[%clk 0:01:10]} 26. f4 {[%clk 0:00:21]}  Kd7 {[%clk 0:00:59]} 27. Bxf6 {[%clk 0:00:20]}  Rxc2 {[%clk 0:00:48]} 28. Rxd6+ {[%clk 0:00:15]}  Kxd6 {[%clk 0:00:44]} 29. Rd1+ {[%clk 0:00:16]}  Rd2 {[%clk 0:00:38]} 30. Be5+ {[%clk 0:00:13]}  Kd7 {[%clk 0:00:30]} 31. Qe1 {[%clk 0:00:13]}  Bf5+ {[%clk 0:00:30]} 32. Kc1 {[%clk 0:00:10]}  Rxd1+ {[%clk 0:00:28]} 33. Qxd1+ {[%clk 0:00:10]}  Ke8 {[%clk 0:00:28]} 34. Qd6 {[%clk 0:00:09]}  Rxd6 {[%clk 0:00:27]} 0-1


[Site "https://www.chess.com"]

[Event "Late Titled Tuesday Blitz February 8 2022"]
[White "Aradhya, Garg"]
[Black "Khanin, Semen"]
[WhiteFideId "25006746"]
[BlackFideId "4111990"]
[WhiteElo "2617"]
[BlackElo "2792"]
[Result "1-0"]
[Round "05"]
[TimeControl "180+1"]
[Date "2022.02.09"]
[WhiteClock "0:00:03"]
[BlackClock "0:00:01"]

1. d4 {[%clk 0:02:57]}  g6 {[%clk 0:02:57]} 2. Nf3 {[%clk 0:02:57]}  Bg7 {[%clk 0:02:58]} 3. c4 {[%clk 0:02:57]}  d6 {[%clk 0:02:57]} 4. Nc3 {[%clk 0:02:57]}  Nd7 {[%clk 0:02:56]} 5. g3 {[%clk 0:02:56]}  e5 {[%clk 0:02:55]} 6. Bg2 {[%clk 0:02:56]}  f5 {[%clk 0:02:53]} 7. Bg5 {[%clk 0:02:45]}  Ngf6 {[%clk 0:02:53]} 8. dxe5 {[%clk 0:02:44]}  dxe5 {[%clk 0:02:52]} 9. e4 {[%clk 0:01:56]}  O-O {[%clk 0:02:33]} 10. O-O {[%clk 0:01:55]}  h6 {[%clk 0:02:31]} 11. Bxf6 {[%clk 0:01:46]}  Qxf6 {[%clk 0:02:28]} 12. Nd5 {[%clk 0:01:43]}  Qd8 {[%clk 0:02:27]} 13. Nh4 {[%clk 0:01:43]}  c6 {[%clk 0:02:18]} 14. Nxg6 {[%clk 0:01:13]}  cxd5 {[%clk 0:02:18]} 15. Nxf8 {[%clk 0:00:54]}  Nxf8 {[%clk 0:02:14]} 16. cxd5 {[%clk 0:00:53]}  Qd6 {[%clk 0:02:08]} 17. Rc1 {[%clk 0:00:52]}  Bd7 {[%clk 0:02:07]} 18. Qb3 {[%clk 0:00:52]}  b6 {[%clk 0:02:05]} 19. Rc2 {[%clk 0:00:49]}  Nh7 {[%clk 0:01:58]} 20. Rfc1 {[%clk 0:00:47]}  fxe4 {[%clk 0:01:58]} 21. Bxe4 {[%clk 0:00:47]}  Nf6 {[%clk 0:01:58]} 22. f3 {[%clk 0:00:39]}  Nxe4 {[%clk 0:01:57]} 23. fxe4 {[%clk 0:00:40]}  Rf8 {[%clk 0:01:56]} 24. Rf1 {[%clk 0:00:38]}  Rxf1+ {[%clk 0:01:53]} 25. Kxf1 {[%clk 0:00:39]}  h5 {[%clk 0:01:51]} 26. Kg2 {[%clk 0:00:38]}  Bh6 {[%clk 0:01:46]} 27. Qf3 {[%clk 0:00:19]}  Bg4 {[%clk 0:01:43]} 28. Qf1 {[%clk 0:00:19]}  Qg6 {[%clk 0:01:42]} 29. Qd3 {[%clk 0:00:16]}  h4 {[%clk 0:01:41]} 30. h3 {[%clk 0:00:14]}  Bd7 {[%clk 0:01:26]} 31. g4 {[%clk 0:00:14]}  Bf4 {[%clk 0:01:24]} 32. Qf3 {[%clk 0:00:12]}  Qd6 {[%clk 0:01:22]} 33. Qa3 {[%clk 0:00:11]}  Qg6 {[%clk 0:01:15]} 34. Qf3 {[%clk 0:00:11]}  Kf8 {[%clk 0:01:01]} 35. Qa3+ {[%clk 0:00:11]}  Ke8 {[%clk 0:01:02]} 36. Qf3 {[%clk 0:00:11]}  Kd8 {[%clk 0:01:01]} 37. b3 {[%clk 0:00:11]}  Qd6 {[%clk 0:01:00]} 38. Qc3 {[%clk 0:00:10]}  a5 {[%clk 0:00:57]} 39. Qc4 {[%clk 0:00:09]}  b5 {[%clk 0:00:54]} 40. Qc3 {[%clk 0:00:09]}  Qb6 {[%clk 0:00:51]} 41. Qd3 {[%clk 0:00:09]}  b4 {[%clk 0:00:48]} 42. d6 {[%clk 0:00:09]}  Qd4 {[%clk 0:00:27]} 43. Qe2 {[%clk 0:00:05]}  Qxd6 {[%clk 0:00:21]} 44. Qc4 {[%clk 0:00:04]}  Be6 {[%clk 0:00:16]} 45. Qc5 {[%clk 0:00:04]}  Qxc5 {[%clk 0:00:13]} 46. Rxc5 {[%clk 0:00:04]}  a4 {[%clk 0:00:14]} 47. Rb5 {[%clk 0:00:03]}  axb3 {[%clk 0:00:14]} 48. axb3 {[%clk 0:00:04]}  Bd2 {[%clk 0:00:14]} 49. Kf3 {[%clk 0:00:04]}  Bc3 {[%clk 0:00:13]} 50. g5 {[%clk 0:00:03]}  Bxb3 {[%clk 0:00:13]} 51. g6 {[%clk 0:00:04]}  Ke7 {[%clk 0:00:12]} 52. Rb6 {[%clk 0:00:04]}  Kf8 {[%clk 0:00:04]} 53. Kg4 {[%clk 0:00:03]}  Kg7 {[%clk 0:00:03]} 54. Kxh4 {[%clk 0:00:04]}  Kh6 {[%clk 0:00:03]} 55. g7+ {[%clk 0:00:02]}  Kxg7 {[%clk 0:00:03]} 56. Kg5 {[%clk 0:00:03]}  Bf7 {[%clk 0:00:02]} 57. Rb7 {[%clk 0:00:03]}  b3 {[%clk 0:00:02]} 58. h4 {[%clk 0:00:03]}  b2 {[%clk 0:00:02]} 59. h5 {[%clk 0:00:04]}  Bd2+ {[%clk 0:00:02]} 60. Kf5 {[%clk 0:00:04]}  Bc1 {[%clk 0:00:03]} 61. h6+ {[%clk 0:00:04]}  Kxh6 {[%clk 0:00:03]} 62. Kxe5 {[%clk 0:00:05]}  Ba2 {[%clk 0:00:03]} 63. Kf6 {[%clk 0:00:04]}  b1=Q {[%clk 0:00:02]} 64. Rxb1 {[%clk 0:00:04]}  Bxb1 {[%clk 0:00:03]} 65. e5 {[%clk 0:00:05]}  Bb2 {[%clk 0:00:04]} 66. Ke6 {[%clk 0:00:05]}  Kg5 {[%clk 0:00:04]} 67. Kd6 {[%clk 0:00:06]}  Kg6 {[%clk 0:00:03]} 68. e6 {[%clk 0:00:06]}  Bf5 {[%clk 0:00:01]} 69. Kd5 {[%clk 0:00:02]}  Kf6 {[%clk 0:00:01]} 70. e7 {[%clk 0:00:03]} 1-0


[Site "https://www.chess.com"]

[Event "Late Titled Tuesday Blitz February 8 2022"]
[White "Araujo, Everson De Moura"]
[Black "Karas, Marek"]
[WhiteFideId "22737197"]
[BlackFideId "14928558"]
[WhiteElo "1861"]
[BlackElo "2270"]
[Result "0-1"]
[Round "05"]
[TimeControl "180+1"]
[Date "2022.02.09"]
[WhiteClock "0:00:07"]
[BlackClock "0:00:29"]

1. d4 {[%clk 0:02:57]}  Nf6 {[%clk 0:02:58]} 2. c4 {[%clk 0:02:54]}  c5 {[%clk 0:02:58]} 3. d5 {[%clk 0:02:52]}  e6 {[%clk 0:02:59]} 4. Nc3 {[%clk 0:02:51]}  exd5 {[%clk 0:02:59]} 5. cxd5 {[%clk 0:02:51]}  d6 {[%clk 0:03:00]} 6. Bf4 {[%clk 0:02:50]}  g6 {[%clk 0:02:58]} 7. e3 {[%clk 0:02:50]}  a6 {[%clk 0:02:58]} 8. a4 {[%clk 0:02:50]}  Bg7 {[%clk 0:02:58]} 9. Bd3 {[%clk 0:02:46]}  O-O {[%clk 0:02:58]} 10. h3 {[%clk 0:02:46]}  Qe7 {[%clk 0:02:48]} 11. Nf3 {[%clk 0:02:45]}  Nbd7 {[%clk 0:02:31]} 12. a5 {[%clk 0:02:45]}  Nh5 {[%clk 0:02:27]} 13. Bh2 {[%clk 0:02:44]}  Ne5 {[%clk 0:02:27]} 14. Be2 {[%clk 0:02:42]}  Nxf3+ {[%clk 0:02:27]} 15. Bxf3 {[%clk 0:02:42]}  Nf6 {[%clk 0:02:28]} 16. O-O {[%clk 0:02:41]}  Bd7 {[%clk 0:02:25]} 17. Ra3 {[%clk 0:02:39]}  Bb5 {[%clk 0:02:24]} 18. Re1 {[%clk 0:02:36]}  Nd7 {[%clk 0:02:21]} 19. Qc2 {[%clk 0:01:44]}  Ne5 {[%clk 0:02:13]} 20. Be2 {[%clk 0:01:38]}  Bxe2 {[%clk 0:02:12]} 21. Rxe2 {[%clk 0:01:36]}  c4 {[%clk 0:02:12]} 22. Na4 {[%clk 0:01:30]}  Rac8 {[%clk 0:02:05]} 23. Nb6 {[%clk 0:01:28]}  Rc5 {[%clk 0:02:05]} 24. Ra4 {[%clk 0:01:22]}  c3 {[%clk 0:01:51]} 25. bxc3 {[%clk 0:01:08]}  Nd7 {[%clk 0:01:49]} 26. Nxd7 {[%clk 0:01:00]}  Qxd7 {[%clk 0:01:50]} 27. c4 {[%clk 0:00:58]}  Rfc8 {[%clk 0:01:50]} 28. Qa2 {[%clk 0:00:54]}  Qc7 {[%clk 0:01:41]} 29. Rd2 {[%clk 0:00:42]}  Bf8 {[%clk 0:01:34]} 30. Rd4 {[%clk 0:00:38]}  Re8 {[%clk 0:01:14]} 31. Bg3 {[%clk 0:00:38]}  Bg7 {[%clk 0:00:56]} 32. Rd2 {[%clk 0:00:33]}  Re4 {[%clk 0:00:56]} 33. Rc2 {[%clk 0:00:29]}  h5 {[%clk 0:00:50]} 34. Rb4 {[%clk 0:00:18]}  Rxa5 {[%clk 0:00:46]} 35. Qb3 {[%clk 0:00:17]}  h4 {[%clk 0:00:37]} 36. Rxb7 {[%clk 0:00:17]}  Ra1+ {[%clk 0:00:34]} 37. Kh2 {[%clk 0:00:17]}  hxg3+ {[%clk 0:00:34]} 38. fxg3 {[%clk 0:00:18]}  Qc5 {[%clk 0:00:32]} 39. Rf2 {[%clk 0:00:18]}  Qxe3 {[%clk 0:00:29]} 40. Rb8+ {[%clk 0:00:15]}  Kh7 {[%clk 0:00:29]} 41. Rxf7 {[%clk 0:00:07]}  Qg1# {[%clk 0:00:29]} 0-1


[Site "https://www.chess.com"]

[Event "Late Titled Tuesday Blitz February 8 2022"]
[White "Bambino Filho, Antonio Carlos"]
[Black "Kim, Sergey"]
[WhiteFideId "2113163"]
[BlackFideId "13700570"]
[WhiteElo "2449"]
[BlackElo "2613"]
[Result "1/2-1/2"]
[Round "05"]
[TimeControl "180+1"]
[Date "2022.02.09"]
[WhiteClock "0:00:10"]
[BlackClock "0:00:35"]

1. d4 {[%clk 0:02:57]}  Nf6 {[%clk 0:02:59]} 2. c4 {[%clk 0:02:58]}  g6 {[%clk 0:02:59]} 3. Nc3 {[%clk 0:02:59]}  Bg7 {[%clk 0:03:00]} 4. e4 {[%clk 0:02:59]}  d6 {[%clk 0:03:00]} 5. Be2 {[%clk 0:03:00]}  O-O {[%clk 0:03:00]} 6. Bg5 {[%clk 0:03:01]}  Nbd7 {[%clk 0:03:00]} 7. Qd2 {[%clk 0:03:01]}  a6 {[%clk 0:03:00]} 8. f3 {[%clk 0:03:01]}  c5 {[%clk 0:02:48]} 9. d5 {[%clk 0:03:01]}  b5 {[%clk 0:02:47]} 10. cxb5 {[%clk 0:03:02]}  axb5 {[%clk 0:02:48]} 11. Bxb5 {[%clk 0:03:03]}  Ba6 {[%clk 0:02:48]} 12. Bxa6 {[%clk 0:02:57]}  Rxa6 {[%clk 0:02:47]} 13. Nge2 {[%clk 0:02:58]}  Qb6 {[%clk 0:02:46]} 14. O-O {[%clk 0:02:56]}  Ne5 {[%clk 0:02:46]} 15. b3 {[%clk 0:02:50]}  Rfa8 {[%clk 0:02:42]} 16. Rab1 {[%clk 0:02:42]}  Qb4 {[%clk 0:02:28]} 17. Na4 {[%clk 0:02:28]}  Qb5 {[%clk 0:02:19]} 18. Nec3 {[%clk 0:02:17]}  Qd3 {[%clk 0:02:16]} 19. Rfd1 {[%clk 0:02:01]}  Qxd2 {[%clk 0:02:16]} 20. Rxd2 {[%clk 0:02:02]}  h6 {[%clk 0:02:12]} 21. Be3 {[%clk 0:01:55]}  Nfd7 {[%clk 0:02:03]} 22. h3 {[%clk 0:01:52]}  f5 {[%clk 0:02:00]} 23. f4 {[%clk 0:01:48]}  Nf7 {[%clk 0:01:59]} 24. exf5 {[%clk 0:01:48]}  gxf5 {[%clk 0:01:59]} 25. Re2 {[%clk 0:01:34]}  Nf6 {[%clk 0:01:49]} 26. Bd2 {[%clk 0:01:34]}  Kf8 {[%clk 0:01:46]} 27. Rbe1 {[%clk 0:01:34]}  R8a7 {[%clk 0:01:45]} 28. Nb2 {[%clk 0:01:21]}  Ne4 {[%clk 0:01:27]} 29. Nxe4 {[%clk 0:01:15]}  fxe4 {[%clk 0:01:28]} 30. Nc4 {[%clk 0:01:10]}  Rxa2 {[%clk 0:01:26]} 31. Rxe4 {[%clk 0:01:10]}  Bf6 {[%clk 0:01:25]} 32. Kh1 {[%clk 0:00:56]}  Rb7 {[%clk 0:01:22]} 33. R4e3 {[%clk 0:00:43]}  Bd4 {[%clk 0:01:15]} 34. Rd3 {[%clk 0:00:37]}  Bf2 {[%clk 0:01:08]} 35. Rf1 {[%clk 0:00:34]}  Bh4 {[%clk 0:01:08]} 36. f5 {[%clk 0:00:31]}  Bf6 {[%clk 0:01:07]} 37. g4 {[%clk 0:00:20]}  Kg7 {[%clk 0:01:03]} 38. Kg2 {[%clk 0:00:16]}  Ne5 {[%clk 0:01:03]} 39. Nxe5 {[%clk 0:00:16]}  Bxe5 {[%clk 0:01:03]} 40. Kf3 {[%clk 0:00:15]}  Rb2 {[%clk 0:00:59]} 41. Bf4 {[%clk 0:00:14]}  Bf6 {[%clk 0:00:56]} 42. Re1 {[%clk 0:00:09]}  R7xb3 {[%clk 0:00:54]} 43. Ree3 {[%clk 0:00:09]}  Rb7 {[%clk 0:00:51]} 44. Kg3 {[%clk 0:00:08]}  Rc2 {[%clk 0:00:48]} 45. h4 {[%clk 0:00:08]}  Rbb2 {[%clk 0:00:47]} 46. g5 {[%clk 0:00:08]}  hxg5 {[%clk 0:00:47]} 47. hxg5 {[%clk 0:00:09]}  Rg2+ {[%clk 0:00:46]} 48. Kh3 {[%clk 0:00:09]}  Bxg5 {[%clk 0:00:44]} 49. Bxg5 {[%clk 0:00:10]}  Rxg5 {[%clk 0:00:44]} 50. Rxe7+ {[%clk 0:00:10]}  Kh6 {[%clk 0:00:40]} 51. Re6+ {[%clk 0:00:11]}  Kh5 {[%clk 0:00:40]} 52. Rg3 {[%clk 0:00:10]}  Rxg3+ {[%clk 0:00:39]} 53. Kxg3 {[%clk 0:00:11]}  Kg5 {[%clk 0:00:39]} 54. Rxd6 {[%clk 0:00:10]}  Rb3+ {[%clk 0:00:39]} 55. Kf2 {[%clk 0:00:09]}  Kxf5 {[%clk 0:00:39]} 56. Rc6 {[%clk 0:00:10]}  Rc3 {[%clk 0:00:39]} 57. Ke2 {[%clk 0:00:09]}  Ke5 {[%clk 0:00:39]} 58. d6 {[%clk 0:00:10]}  Rc4 {[%clk 0:00:37]} 59. d7 {[%clk 0:00:09]}  Rd4 {[%clk 0:00:35]} 60. Rxc5+ {[%clk 0:00:09]}  Ke6 {[%clk 0:00:36]} 61. Rc6+ {[%clk 0:00:08]}  Kxd7 {[%clk 0:00:36]} 62. Rc3 {[%clk 0:00:09]}  Rd6 {[%clk 0:00:35]} 63. Rd3 {[%clk 0:00:09]}  Rxd3 {[%clk 0:00:35]} 64. Kxd3 {[%clk 0:00:10]} 1/2-1/2


[Site "https://www.chess.com"]

[Event "Late Titled Tuesday Blitz February 8 2022"]
[White "Barp, Alberto"]
[Black "Novikov, Evgenij"]
[WhiteFideId "872555"]
[BlackFideId "4125380"]
[WhiteElo "2229"]
[BlackElo "2242"]
[Result "0-1"]
[Round "05"]
[TimeControl "180+1"]
[Date "2022.02.09"]
[WhiteClock "0:00:02"]
[BlackClock "0:00:05"]

1. d4 {[%clk 0:03:00]}  Nf6 {[%clk 0:02:56]} 2. c4 {[%clk 0:03:00]}  e6 {[%clk 0:02:57]} 3. g3 {[%clk 0:02:56]}  d5 {[%clk 0:02:54]} 4. Bg2 {[%clk 0:02:56]}  Be7 {[%clk 0:02:54]} 5. Nf3 {[%clk 0:02:54]}  O-O {[%clk 0:02:55]} 6. O-O {[%clk 0:02:54]}  c6 {[%clk 0:02:55]} 7. Qb3 {[%clk 0:02:43]}  Nbd7 {[%clk 0:02:54]} 8. Rd1 {[%clk 0:02:41]}  b6 {[%clk 0:02:53]} 9. Bf4 {[%clk 0:02:37]}  Bb7 {[%clk 0:02:54]} 10. Nc3 {[%clk 0:02:37]}  a5 {[%clk 0:02:49]} 11. Rac1 {[%clk 0:02:24]}  Nh5 {[%clk 0:02:32]} 12. Bd2 {[%clk 0:02:15]}  Nhf6 {[%clk 0:02:32]} 13. Bf4 {[%clk 0:02:11]}  Nh5 {[%clk 0:02:32]} 14. Be3 {[%clk 0:02:05]}  Nhf6 {[%clk 0:02:31]} 15. h3 {[%clk 0:02:05]}  dxc4 {[%clk 0:02:11]} 16. Qxc4 {[%clk 0:02:01]}  Nd5 {[%clk 0:02:12]} 17. Bd2 {[%clk 0:01:40]}  Ba6 {[%clk 0:01:49]} 18. Qxc6 {[%clk 0:01:37]}  Rc8 {[%clk 0:01:43]} 19. Qa4 {[%clk 0:01:29]}  Nxc3 {[%clk 0:01:23]} 20. Bxc3 {[%clk 0:01:15]}  Bxe2 {[%clk 0:01:23]} 21. Re1 {[%clk 0:01:13]}  Ba6 {[%clk 0:01:00]} 22. Rcd1 {[%clk 0:00:17]}  Bb7 {[%clk 0:00:57]} 23. Qc2 {[%clk 0:00:16]}  Nf6 {[%clk 0:00:56]} 24. Qb1 {[%clk 0:00:15]}  Nd5 {[%clk 0:00:55]} 25. Bd2 {[%clk 0:00:14]}  Bf6 {[%clk 0:00:51]} 26. Ne5 {[%clk 0:00:14]}  Qc7 {[%clk 0:00:47]} 27. Rc1 {[%clk 0:00:12]}  Qe7 {[%clk 0:00:46]} 28. Rxc8 {[%clk 0:00:10]}  Rxc8 {[%clk 0:00:45]} 29. Rc1 {[%clk 0:00:10]}  Qd8 {[%clk 0:00:45]} 30. Rxc8 {[%clk 0:00:08]}  Qxc8 {[%clk 0:00:46]} 31. Be4 {[%clk 0:00:06]}  g6 {[%clk 0:00:45]} 32. Qc2 {[%clk 0:00:04]}  Qd8 {[%clk 0:00:23]} 33. Bf3 {[%clk 0:00:03]}  Bg7 {[%clk 0:00:23]} 34. Kg2 {[%clk 0:00:03]}  Qa8 {[%clk 0:00:21]} 35. Qd1 {[%clk 0:00:02]}  h5 {[%clk 0:00:20]} 36. h4 {[%clk 0:00:02]}  a4 {[%clk 0:00:19]} 37. a3 {[%clk 0:00:02]}  b5 {[%clk 0:00:19]} 38. Kg1 {[%clk 0:00:03]}  Ne7 {[%clk 0:00:16]} 39. Bxb7 {[%clk 0:00:02]}  Qxb7 {[%clk 0:00:17]} 40. Qf3 {[%clk 0:00:02]}  Qxf3 {[%clk 0:00:17]} 41. Nxf3 {[%clk 0:00:03]}  Nc6 {[%clk 0:00:18]} 42. Bc3 {[%clk 0:00:02]}  Kf8 {[%clk 0:00:17]} 43. Kf1 {[%clk 0:00:03]}  Ke7 {[%clk 0:00:17]} 44. Ke2 {[%clk 0:00:04]}  Kd7 {[%clk 0:00:15]} 45. Kd3 {[%clk 0:00:04]}  Ne7 {[%clk 0:00:15]} 46. Ke4 {[%clk 0:00:05]}  Nd5 {[%clk 0:00:15]} 47. Bd2 {[%clk 0:00:06]}  Kc6 {[%clk 0:00:12]} 48. Ne5+ {[%clk 0:00:06]}  Bxe5 {[%clk 0:00:11]} 49. dxe5 {[%clk 0:00:06]}  Kc5 {[%clk 0:00:09]} 50. Kd3 {[%clk 0:00:04]}  Nc7 {[%clk 0:00:07]} 51. Ke4 {[%clk 0:00:03]}  Kc4 {[%clk 0:00:08]} 52. f3 {[%clk 0:00:03]}  Nd5 {[%clk 0:00:07]} 53. g4 {[%clk 0:00:02]}  Kb3 {[%clk 0:00:06]} 54. Bc1 {[%clk 0:00:02]}  Kc2 {[%clk 0:00:06]} 55. Bg5 {[%clk 0:00:02]}  Kxb2 {[%clk 0:00:05]} 0-1


[Site "https://www.chess.com"]

[Event "Late Titled Tuesday Blitz February 8 2022"]
[White "Beerdsen, Thomas"]
[Black "Niemann, Hans Moke"]
[WhiteFideId "1030108"]
[BlackFideId "2093596"]
[WhiteElo "2585"]
[BlackElo "2636"]
[Result "0-1"]
[Round "05"]
[TimeControl "180+1"]
[Date "2022.02.08"]
[WhiteClock "0:00:04"]
[BlackClock "0:00:55"]

1. e4 {[%clk 0:02:56]}  g6 {[%clk 0:02:58]} 2. d4 {[%clk 0:02:56]}  Bg7 {[%clk 0:02:59]} 3. Nf3 {[%clk 0:02:56]}  c6 {[%clk 0:02:59]} 4. Bc4 {[%clk 0:02:57]}  d5 {[%clk 0:02:59]} 5. Bb3 {[%clk 0:02:58]}  Bg4 {[%clk 0:02:57]} 6. h3 {[%clk 0:02:52]}  Bxf3 {[%clk 0:02:57]} 7. Qxf3 {[%clk 0:02:53]}  e6 {[%clk 0:02:57]} 8. c3 {[%clk 0:02:50]}  Nd7 {[%clk 0:02:52]} 9. O-O {[%clk 0:02:46]}  Ne7 {[%clk 0:02:51]} 10. Bf4 {[%clk 0:02:42]}  O-O {[%clk 0:02:50]} 11. Nd2 {[%clk 0:02:42]}  a5 {[%clk 0:02:50]} 12. a3 {[%clk 0:02:39]}  a4 {[%clk 0:02:50]} 13. Bc2 {[%clk 0:02:37]}  c5 {[%clk 0:02:49]} 14. exd5 {[%clk 0:02:30]}  cxd4 {[%clk 0:02:29]} 15. dxe6 {[%clk 0:02:03]}  fxe6 {[%clk 0:02:28]} 16. Qg4 {[%clk 0:01:58]}  Nc5 {[%clk 0:02:08]} 17. Ne4 {[%clk 0:01:35]}  h5 {[%clk 0:02:05]} 18. Qg3 {[%clk 0:01:15]}  Nd5 {[%clk 0:01:15]} 19. Bd6 {[%clk 0:00:45]}  Nxe4 {[%clk 0:01:09]} 20. Bxe4 {[%clk 0:00:45]}  h4 {[%clk 0:01:05]} 21. Qh2 {[%clk 0:00:35]}  Rf7 {[%clk 0:01:02]} 22. Bxg6 {[%clk 0:00:21]}  Rd7 {[%clk 0:01:01]} 23. Bc5 {[%clk 0:00:15]}  Qg5 {[%clk 0:00:58]} 24. Bb1 {[%clk 0:00:05]}  Be5 {[%clk 0:00:57]} 25. f4 {[%clk 0:00:04]}  Nxf4 {[%clk 0:00:57]} 26. Kh1 {[%clk 0:00:04]}  Ne2 {[%clk 0:00:55]} 0-1


[Site "https://www.chess.com"]